bitfinex-derivatives/quotes_SOLF0:USTF0_20250509
["timestamp","ask_amount","ask_price","bid_price","bid_amount"]
[1746807210913,22.6729539,169.8,169.66,36.62]
[1746807211116,3.7934,169.79,169.66,36.62]
[1746807211406,72.82,169.78,169.65,37.9899]
[1746807211613,72.82,169.78,169.66,36.76]
[1746807212513,5.8904,169.76,169.66,36.76]
[1746807212713,72.82,169.78,169.66,36.76]
[1746807213222,5.8913,169.74,169.66,36.76]
[1746807213714,72.82,169.78,169.66,36.76]
[1746807214310,5.8902,169.77,169.72,5.8914]
[1746807214609,5.8902,169.77,169.66,36.76]
[1746807214810,36.04,169.78,169.75,5.8905]
[1746807215115,1.8841,169.83,169.71,37.2]
[1746807215413,36.04,169.85,169.71,73.24]
[1746807215615,36.04,169.85,169.72,1.9827]
[1746807215811,73.28,169.85,169.72,1.9827]
[1746807216011,5.8888,169.81,169.72,1.9827]
[1746807216215,36.04,169.85,169.72,1.9827]
[1746807216408,36.04,169.85,169.82,5.8879]
[1746807216715,36.04,169.85,169.73,3.8298]
[1746807217015,5.8878,169.84,169.8,5.8888]
[1746807217512,37.46,169.83,169.72,1.9827]
[1746807217713,39.3594,169.83,169.7,74.76]
[1746807218118,5.8899,169.78,169.7,74.76]
[1746807218318,39.3594,169.83,169.7,74.76]
[1746807219414,5.8886,169.81,169.78,5.8896]
[1746807219615,39.3594,169.83,169.7,74.76]
[1746807219816,5.8895,169.79,169.76,5.8903]
[1746807220116,39.3594,169.83,169.76,5.8903]
[1746807220315,5.889,169.8,169.76,5.8903]
[1746807220717,37.46,169.83,169.7,74.76]
[1746807220918,36.04,169.85,169.7,74.76]
[1746807221217,36.04,169.85,169.73,22.6729539]
[1746807221415,36.04,169.85,169.74,1.8541]
[1746807221714,36.04,169.85,169.75,37.32]
[1746807221915,5.8882,169.82,169.78,5.8894]
[1746807222214,36.04,169.85,169.73,37.4]
[1746807222620,1.914,169.89,169.73,37.4]
[1746807222816,78.8125,169.88,169.73,37.4]
[1746807223020,5.8881,169.83,169.79,5.889]
[1746807223419,78.8125,169.88,169.79,5.889]
[1746807223921,78.8125,169.88,169.8,5.8889]
[1746807224221,5.887,169.86,169.75,37.3]
[1746807224521,41.2925,169.88,169.75,37.3]
[1746807224723,5.888,169.83,169.75,37.3]
[1746807224915,41.2925,169.88,169.75,37.3]
[1746807225518,5.8871,169.86,169.75,37.3]
[1746807225712,41.2925,169.88,169.76,22.6729539]
[1746807225910,5.8866,169.87,169.76,22.6729539]
[1746807226124,5.8866,169.87,169.83,5.8876]
[1746807226317,5.8866,169.87,169.79,37.42]
[1746807226516,5.8866,169.87,169.83,5.8878]
[1746807226717,546.94,169.92,169.79,37.42]
[1746807227816,5.8867,169.87,169.79,37.42]
[1746807228018,546.94,169.92,169.8,37.3]
[1746807228216,546.94,169.92,169.8,39.2657]
[1746807228525,37.3,169.92,169.8,39.2657]
[1746807228919,5.8864,169.88,169.84,5.8875]
[1746807229226,37.3,169.92,169.8,39.2657]
[1746807229417,37.3,169.92,169.8,1.9657]
[1746807229617,5.8874,169.85,169.81,5.8885]
[1746807229818,37.3,169.92,169.79,37.94]
[1746807230123,5.8878,169.84,169.8,5.8887]
[1746807230313,37.3,169.92,169.79,37.94]
[1746807230623,5.8873,169.85,169.79,37.94]
[1746807231023,37.3,169.92,169.79,37.94]
[1746807231219,37.3,169.92,169.77,3.6872]
[1746807231422,1.05742292,169.91,169.77,3.6872]
[1746807232721,5.8885,169.82,169.78,5.8895]
[1746807232915,37.28,169.86,169.78,5.8895]
[1746807233122,37.28,169.86,169.72,546.38]
[1746807233321,5.5804,169.85,169.71,39.8173]
[1746807233822,5.8896,169.79,169.75,5.8904]
[1746807234026,5.5804,169.85,169.71,39.8173]
[1746807234226,5.8898,169.78,169.71,39.8173]
[1746807234523,508.92,169.9,169.71,1.8173]
[1746807234719,3.8004,169.86,169.74,75.38]
[1746807234918,3.8004,169.86,169.79,5.8892]
[1746807235126,3.8004,169.86,169.74,75.38]
[1746807235327,5.888,169.83,169.74,75.38]
[1746807235529,3.8004,169.86,169.74,75.38]
[1746807235828,9.6874,169.86,169.82,5.888]
[1746807236128,39.1109,169.89,169.75,6.21281682]
[1746807236323,39.1109,169.89,169.76,28.88577072]
[1746807236524,5.8867,169.87,169.76,22.6729539]
[1746807236725,39.1109,169.89,169.76,22.6729539]
[1746807237228,5.8866,169.87,169.77,6.22760768]
[1746807237427,5.8866,169.87,169.78,6.22760768]
[1746807237725,5.8866,169.87,169.84,5.8875]
[1746807238123,44.9969,169.89,169.77,6.22628533]
[1746807238332,39.1109,169.89,169.84,5.8873]
[1746807238628,5.8864,169.88,169.76,22.6729539]
[1746807238825,5.8864,169.88,169.84,5.8873]
[1746807239030,37.28,169.89,169.79,37.28]
[1746807239429,37.28,169.89,169.82,5.8879]
[1746807239729,37.28,169.89,169.79,37.28]
[1746807239927,5.8873,169.85,169.79,37.28]
[1746807240124,37.28,169.89,169.79,37.28]
[1746807240630,5.8869,169.86,169.82,5.8882]
[1746807241326,5.8872,169.85,169.82,5.8882]
[1746807241523,37.28,169.89,169.83,5.8879]
[1746807241728,37.28,169.89,169.76,97.7729539]
[1746807241928,5.8871,169.86,169.77,6.24510682]
[1746807242123,3.7788,169.93,169.8,22.6729539]
[1746807242331,9.6635,169.93,169.81,47.23970682]
[1746807242525,1.9943,169.94,169.82,44.04510682]
[1746807242724,84.93112626,169.94,169.83,6.24510682]
[1746807242920,84.93112626,169.94,169.84,28.91806072]
[1746807243123,84.93112626,169.94,169.85,6.24510682]
[1746807243124,82.93682626,169.94,169.85,6.24510682]
[1746807243328,82.93682626,169.94,169.86,43.52510682]
[1746807243628,82.93682626,169.94,169.87,6.24510682]
[1746807243830,138.259842,169.96,169.86,37.28]
[1746807244032,138.259842,169.96,169.87,6.24241388]
[1746807244330,138.259842,169.96,169.81,80.6932]
[1746807244532,22.6729539,169.96,169.82,6.25227827]
[1746807244831,22.6729539,169.96,169.83,6.25227827]
[1746807245033,1.05703687,169.95,169.81,80.6932]
[1746807245227,37.28,169.94,169.85,5.887]
[1746807245733,37.28,169.94,169.87,5.8865]
[1746807245933,37.28,169.94,169.81,80.6932]
[1746807246135,37.28,169.94,169.82,6.27241723]
[1746807246334,37.28,169.94,169.86,5.8867]
[1746807246634,5.8857,169.9,169.86,5.8867]
[1746807246936,37.28,169.94,169.81,80.6932]
[1746807247131,37.28,169.94,169.82,6.28067368]
[1746807247327,1.8907,169.97,169.84,22.6729539]
[1746807247531,1.8907,169.97,169.85,6.28067368]
[1746807247733,1.8907,169.97,169.86,6.28067368]
[1746807247926,1.8907,169.97,169.88,5.8861]
[1746807248131,1.8907,169.97,169.89,6.28067368]
[1746807248332,5.8847,169.93,169.88,5.8861]
[1746807248534,37.94,169.94,169.88,5.8861]
[1746807248729,5.885,169.92,169.88,5.8861]
[1746807248927,37.94,169.94,169.83,75.64]
[1746807249231,37.94,169.94,169.84,6.28365223]
[1746807249536,5.8852,169.91,169.87,5.8863]
[1746807249833,5.8844,169.93,169.89,5.8856]
[1746807250037,37.7,169.95,169.83,37.7]
[1746807250237,37.7,169.95,169.84,6.28383584]
[1746807250440,37.7,169.95,169.85,6.28383584]
[1746807250738,37.7,169.95,169.86,6.28383584]
[1746807250936,43.584,169.95,169.9,5.8853]
[1746807251135,38.0,169.94,169.9,5.8853]
[1746807251331,38.0,169.94,169.83,37.7]
[1746807251537,5.8857,169.9,169.84,6.28706034]
[1746807251738,5.8857,169.9,169.85,6.28706034]
[1746807251937,38.0,169.94,169.81,5.5732]
[1746807252137,38.0,169.94,169.85,5.8871]
[1746807252536,38.0,169.94,169.81,5.5732]
[1746807252739,5.8859,169.89,169.85,5.8871]
[1746807253137,38.0,169.94,169.81,1.8465]
[1746807253337,22.63684892,169.93,169.82,6.29044156]
[1746807253538,23.69410542,169.93,169.76,508.92]
[1746807253842,1.0572565,169.92,169.84,5.8872]
[1746807254237,77.7295,169.91,169.76,508.92]
[1746807254543,2.0103,169.9,169.77,6.29450054]
[1746807254838,2.0103,169.9,169.78,6.29450054]
[1746807255045,2.0039,169.89,169.72,77.6994]
[1746807255245,1.0575946,169.88,169.73,6.29842835]
[1746807255444,5.8893,169.79,169.74,6.30053701]
[1746807255647,5.8893,169.79,169.71,3.7145]
[1746807255648,75.74,169.8,169.71,3.7145]
[1746807255843,75.74,169.8,169.72,6.30172299]
[1746807256045,75.74,169.8,169.73,6.30172299]
[1746807256344,38.04,169.8,169.74,6.30172299]
[1746807256547,38.04,169.8,169.78,5.8896]
[1746807256844,38.04,169.8,169.71,3.7145]
[1746807257046,75.74,169.84,169.72,6.29732675]
[1746807257248,5.8887,169.81,169.75,5.8904]
[1746807257442,75.74,169.84,169.76,6.30041248]
[1746807257647,75.74,169.84,169.77,6.30041248]
[1746807257847,75.74,169.84,169.78,5.8893]
[1746807258047,508.78,169.87,169.71,3.7145]
[1746807258248,75.78,169.85,169.72,28.93651765]
[1746807258441,75.78,169.85,169.73,43.99966873]
[1746807258640,75.78,169.85,169.74,46.33336873]
[1746807258845,75.78,169.85,169.75,6.29966873]
[1746807259144,75.78,169.85,169.76,6.29966873]
[1746807259344,75.78,169.85,169.77,6.29966873]
[1746807259548,75.78,169.85,169.78,12.18906873]
[1746807259845,75.78,169.85,169.79,6.29966873]
[1746807260046,75.78,169.85,169.74,40.0337]
[1746807260236,75.78,169.85,169.8,5.8889]
[1746807260442,75.78,169.85,169.74,40.0337]
[1746807260737,508.78,169.87,169.75,6.30057901]
[1746807260941,83.20952386,169.93,169.8,22.65053478]
[1746807261142,83.20952386,169.93,169.81,41.4475]
[1746807261347,587.1212,169.95,169.82,6.29284969]
[1746807261647,587.1212,169.95,169.83,6.29284969]
[1746807261848,5.8855,169.9,169.84,6.29284969]
[1746807262049,587.1212,169.95,169.85,6.29284969]
[1746807262348,587.1212,169.95,169.81,41.4475]
[1746807262549,5.8857,169.9,169.83,5.8878]
[1746807262743,587.1212,169.95,169.84,6.29319806]
[1746807262945,5.8861,169.89,169.85,6.29319806]
[1746807263146,5.8861,169.89,169.82,5.888]
[1746807263344,587.1212,169.95,169.83,6.29480925]
[1746807263549,5.8871,169.86,169.79,5.8892]
[1746807263750,76.36,169.89,169.8,6.29728869]
[1746807263945,41.3579,169.88,169.81,6.29728869]
[1746807264150,41.3579,169.88,169.75,3.9849]
[1746807264351,2.0077,169.87,169.76,6.30064087]
[1746807264553,2.0077,169.87,169.77,6.30064087]
[1746807264750,7.8945,169.87,169.81,5.8883]
[1746807264947,2.0077,169.87,169.82,6.30006843]
[1746807265248,5.8869,169.86,169.81,5.8883]
[1746807265448,5.8869,169.86,169.82,6.30190878]
[1746807265750,5.8869,169.86,169.81,5.8883]
[1746807265751,2.0077,169.87,169.81,5.8883]
[1746807265953,2.0077,169.87,169.82,6.30555885]
[1746807266251,2.0077,169.87,169.8,5.8888]
[1746807266452,2.0077,169.87,169.81,6.30642394]
[1746807266642,5.8878,169.84,169.82,6.30668458]
[1746807266948,39.16,169.84,169.69,101.15053478]
[1746807267152,5.8887,169.81,169.71,10.11496911]
[1746807267342,39.16,169.84,169.72,6.31126911]
[1746807267544,39.16,169.84,169.73,6.31126911]
[1746807267743,5.8892,169.8,169.71,3.8037]
[1746807267950,5.8892,169.8,169.75,5.8904]
[1746807268152,5.8891,169.8,169.76,6.31324019]
[1746807268451,39.16,169.84,169.72,5.8914]
[1746807268651,39.16,169.82,169.73,6.31677626]
[1746807268954,39.16,169.82,169.74,6.31677626]
[1746807269144,39.16,169.82,169.75,6.31677626]
[1746807269350,39.16,169.82,169.7,1.0]
[1746807269646,5.8894,169.79,169.74,5.8907]
[1746807269954,39.16,169.82,169.75,6.31586951]
[1746807270156,39.16,169.82,169.7,1.0]
[1746807270349,39.16,169.82,169.73,5.8913]
[1746807270549,39.16,169.82,169.74,6.31538582]
[1746807270750,39.16,169.82,169.75,6.31589731]
[1746807270950,5.8896,169.78,169.74,5.8908]
[1746807271150,39.16,169.82,169.7,1.0]
[1746807271352,39.16,169.82,169.71,6.31497062]
[1746807271653,5.8895,169.79,169.74,5.8908]
[1746807271852,39.16,169.82,169.7,1.0]
[1746807272055,39.16,169.82,169.71,12.01566837]
[1746807272255,39.16,169.82,169.72,6.31746837]
[1746807272557,39.16,169.82,169.73,6.31746837]
[1746807272856,39.16,169.82,169.74,6.31746837]
[1746807273160,39.16,169.82,169.75,6.31746837]
[1746807273355,39.16,169.82,169.76,6.31746837]
[1746807273549,39.16,169.82,169.77,6.31746837]
[1746807273859,41.1677,169.87,169.78,6.31318233]
[1746807274056,41.1677,169.87,169.79,6.31318233]
[1746807274257,5.8872,169.85,169.81,5.8885]
[1746807274757,41.1677,169.87,169.75,39.16]
[1746807274954,41.1677,169.87,169.76,6.31395876]
[1746807275153,2.0077,169.87,169.77,28.96449354]
[1746807275358,2.0077,169.87,169.83,5.8876]
[1746807275556,2.0077,169.87,169.78,1.8917]
[1746807275760,2.0077,169.87,169.79,6.30977008]
[1746807275962,5.8875,169.85,169.8,6.30977008]
[1746807276262,83.0477,169.87,169.79,5.8893]
[1746807276562,5.8884,169.82,169.76,81.02]
[1746807276764,83.0477,169.87,169.77,6.31760141]
[1746807277061,88.9345,169.87,169.81,5.8885]
[1746807277266,83.0477,169.87,169.76,22.65053478]
[1746807277563,83.0477,169.87,169.77,6.31469086]
[1746807277760,83.0477,169.87,169.78,6.31469086]
[1746807277959,83.0477,169.87,169.79,6.31469086]
[1746807278159,88.9344,169.87,169.82,5.8882]
[1746807278360,88.9344,169.87,169.83,6.31469086]
[1746807278562,83.0477,169.87,169.77,81.54]
[1746807278862,83.0477,169.87,169.83,5.8878]
[1746807279361,83.0477,169.87,169.84,5.8875]
[1746807280265,5.8853,169.91,169.86,5.8869]
[1746807280570,41.3,169.91,169.77,81.54]
[1746807280863,5.8861,169.89,169.78,6.31257641]
[1746807281063,5.8861,169.89,169.79,6.31257641]
[1746807281259,41.3,169.91,169.8,6.31257641]
[1746807281452,5.8864,169.88,169.83,5.8876]
[1746807281660,5.8864,169.88,169.84,6.31257641]
[1746807281861,5.8865,169.87,169.82,5.8882]
[1746807282060,41.3,169.91,169.76,22.65053478]
[1746807282261,1.8596,169.86,169.77,6.31669295]
[1746807282463,1.9141,169.85,169.78,6.31669295]
[1746807282659,1.9141,169.85,169.79,6.31669295]
[1746807282961,1.8596,169.86,169.8,6.31669295]
[1746807283158,1.8596,169.86,169.81,6.31669295]
[1746807283358,1.8596,169.86,169.82,6.31669295]
[1746807283554,7.7465,169.86,169.76,22.65053478]
[1746807283761,1.8596,169.86,169.82,1.0]
[1746807283962,40.48,169.89,169.83,6.31574946]
[1746807284157,40.48,169.89,169.82,1.0]
[1746807284465,46.3661,169.89,169.84,5.8875]
[1746807284666,40.48,169.89,169.82,1.0]
[1746807285361,40.48,169.89,169.83,6.31228889]
[1746807285562,40.48,169.89,169.82,1.0]
[1746807285763,40.48,169.89,169.83,6.31186826]
[1746807285963,40.48,169.89,169.84,6.31186826]
[1746807286164,40.48,169.89,169.82,1.0]
[1746807286367,40.48,169.89,169.83,6.31083558]
[1746807286569,40.48,169.89,169.82,1.0]
[1746807287869,5.8876,169.84,169.82,1.0]
[1746807288463,7.8216,169.85,169.82,1.0]
[1746807288671,1.9344,169.85,169.82,1.0]
[1746807288972,1.9344,169.85,169.82,6.8882]
[1746807290069,1.9344,169.85,169.83,5.8878]
[1746807290772,42.42,169.86,169.84,5.8875]
[1746807291164,86.2341,169.9,169.82,1.0]
[1746807291371,44.1741,169.9,169.83,6.3144714]
[1746807291573,86.2341,169.9,169.84,6.3144714]
[1746807291774,86.2341,169.9,169.82,1.0]
[1746807291972,86.2341,169.9,169.82,6.8881]
[1746807292168,86.2341,169.9,169.82,1.0]
[1746807292871,1.05741975,169.89,169.82,1.0]
[1746807293470,5.8879,169.83,169.82,1.0]
[1746807293671,5.8879,169.83,169.74,40.48]
[1746807293872,84.24,169.84,169.75,6.3184061]
[1746807294073,90.1276,169.84,169.79,5.889]
[1746807294275,90.1276,169.84,169.8,6.31946232]
[1746807294470,90.1276,169.84,169.79,5.8892]
[1746807294674,90.1276,169.84,169.8,6.31868148]
[1746807294877,90.1276,169.84,169.79,5.8892]
[1746807295076,84.24,169.84,169.8,6.31902548]
[1746807295277,84.24,169.84,169.74,40.48]
[1746807295581,5.8882,169.83,169.78,5.8896]
[1746807295882,84.24,169.84,169.79,6.3209961]
[1746807296081,84.24,169.84,169.74,40.48]
[1746807296282,5.8885,169.82,169.77,5.89]
[1746807296482,5.8885,169.82,169.78,6.32323155]
[1746807296780,5.8886,169.81,169.79,6.32323155]
[1746807296981,5.8886,169.81,169.74,40.48]
[1746807297177,84.24,169.84,169.75,6.32481624]
[1746807297382,5.8888,169.81,169.76,12.21501624]
[1746807297581,5.8888,169.81,169.77,6.32481624]
[1746807297775,84.24,169.84,169.78,6.32481624]
[1746807297976,5.8885,169.82,169.79,6.32481624]
[1746807298176,5.8885,169.82,169.77,5.8898]
[1746807298482,84.24,169.84,169.78,6.32714566]
[1746807298684,84.24,169.84,169.79,6.32714566]
[1746807298882,84.24,169.84,169.74,40.48]
[1746807299183,84.24,169.84,169.78,5.8894]
[1746807299476,84.24,169.84,169.79,6.32709518]
[1746807299673,84.24,169.84,169.74,40.48]
[1746807299876,84.24,169.84,169.75,6.3269536]
[1746807300076,1.8566,169.83,169.76,6.3269536]
[1746807300385,1.8566,169.83,169.77,6.3269536]
[1746807300584,1.8566,169.83,169.78,6.3269536]
[1746807300785,5.8888,169.81,169.76,5.8902]
[1746807301087,5.8888,169.81,169.77,6.32889172]
[1746807301282,1.8566,169.83,169.78,6.32889172]
[1746807301480,1.8566,169.83,169.79,6.32889172]
[1746807301683,42.26,169.89,169.8,6.32889172]
[1746807301985,83.7,169.89,169.81,6.32889172]
[1746807302286,83.7,169.89,169.82,6.31851438]
[1746807302586,42.26,169.89,169.83,6.31769485]
[1746807302885,5.8869,169.86,169.84,6.31769485]
[1746807303080,41.4,169.86,169.75,13.93471768]
[1746807303280,5.8877,169.84,169.79,5.8893]
[1746807303481,41.4,169.86,169.8,6.31873081]
[1746807303680,41.4,169.86,169.81,6.31873081]
[1746807303883,5.8873,169.85,169.73,99.60121768]
[1746807304089,41.4,169.86,169.74,6.33457179]
[1746807304280,42.26,169.89,169.84,5.8875]
[1746807304485,48.1459,169.89,169.85,6.32264001]
[1746807304678,42.26,169.89,169.74,11.7821]
[1746807304883,5.8862,169.88,169.83,5.8876]
[1746807305084,42.26,169.89,169.84,6.32243768]
[1746807305287,42.26,169.89,169.77,13.93471768]
[1746807305486,42.26,169.89,169.78,6.32662976]
[1746807305788,42.26,169.89,169.8,5.8886]
[1746807306093,42.26,169.89,169.81,6.32662976]
[1746807306293,42.26,169.89,169.82,6.32662976]
[1746807306478,42.26,169.89,169.83,6.32662976]
[1746807306782,42.26,169.89,169.84,6.32662976]
[1746807306989,48.1461,169.89,169.85,12.21382976]
[1746807307181,42.26,169.89,169.85,5.8872]
[1746807307584,42.26,169.89,169.79,3.8705]
[1746807307893,42.26,169.89,169.8,6.32098311]
[1746807308085,42.26,169.89,169.81,6.32098311]
[1746807308285,42.26,169.89,169.82,6.32098311]
[1746807308486,42.26,169.89,169.83,6.32098311]
[1746807308686,42.26,169.89,169.84,6.32098311]
[1746807308892,42.26,169.89,169.85,6.32098311]
[1746807309087,1.8566,169.91,169.86,6.32180672]
[1746807309286,42.26,169.94,169.87,6.32180672]
[1746807309589,42.26,169.94,169.88,6.32180672]
[1746807309890,42.26,169.94,169.82,13.93471768]
[1746807310091,42.26,169.94,169.83,6.31969999]
[1746807310387,42.26,169.94,169.84,6.31969999]
[1746807310587,42.26,169.94,169.85,6.31969999]
[1746807310788,5.8864,169.88,169.86,6.31969999]
[1746807310988,41.6,169.91,169.8,1.9667]
[1746807311183,1.8631,169.9,169.81,6.31737469]
[1746807311389,3.7895,169.9,169.82,6.31737469]
[1746807311591,3.7895,169.9,169.83,6.31737469]
[1746807311784,3.7895,169.9,169.72,97.73471768]
[1746807311989,1.8451,169.89,169.73,6.3257775]
[1746807312193,5.8885,169.82,169.74,6.3257775]
[1746807312392,41.56,169.84,169.75,6.3257775]
[1746807312585,41.56,169.84,169.76,6.3257775]
[1746807312787,41.56,169.84,169.77,6.3257775]
[1746807312990,41.56,169.84,169.78,6.3257775]
[1746807313191,41.56,169.84,169.72,42.26]
[1746807313389,41.56,169.84,169.73,6.3320424]
[1746807313590,41.56,169.84,169.74,6.3320424]
[1746807313790,41.56,169.84,169.75,6.3320424]
[1746807313991,41.56,169.84,169.76,6.3320424]
[1746807314292,41.56,169.84,169.77,6.3320424]
[1746807314490,41.56,169.84,169.78,6.3320424]
[1746807314695,5.8894,169.79,169.74,5.8909]
[1746807314993,41.78,169.78,169.7,1.0]
[1746807315294,45.698,169.77,169.71,6.33330727]
[1746807315502,45.698,169.77,169.72,6.33330727]
[1746807315795,43.7495,169.77,169.73,6.33330727]
[1746807315987,43.7495,169.77,169.74,6.33330727]
[1746807316192,43.7495,169.77,169.7,1.0]
[1746807316392,43.7495,169.77,169.74,5.8908]
[1746807316595,41.8,169.77,169.75,6.32133469]
[1746807316798,41.7,169.8,169.7,1.0]
[1746807316997,41.7,169.8,169.71,8.22313842]
[1746807317197,41.7,169.8,169.72,6.32033842]
[1746807317394,47.5891,169.8,169.76,5.8903]
[1746807317598,41.7,169.8,169.77,6.32033842]
[1746807317790,41.7,169.82,169.71,1.9028]
[1746807317998,5.8893,169.8,169.75,5.8904]
[1746807318194,41.7,169.82,169.76,6.31436417]
[1746807318500,5.8895,169.81,169.77,6.31436417]
[1746807318798,41.7,169.82,169.7,2.8821]
[1746807318994,41.7,169.82,169.71,6.31582959]
[1746807319198,55.63471768,169.82,169.72,6.31582959]
[1746807319499,5.8922,169.73,169.7,1.0]
[1746807319699,5.8922,169.73,169.71,6.31846692]
[1746807320002,41.7,169.75,169.7,6.8929]
[1746807320205,41.7,169.75,169.7,1.0]
[1746807320402,43.7148,169.75,169.7,1.0]
[1746807320593,1.8386,169.74,169.58,83.48]
[1746807320796,5.8931,169.7,169.59,6.31882451]
[1746807320992,41.72,169.7,169.6,6.31882451]
[1746807321197,47.613,169.7,169.65,5.8946]
[1746807321397,41.72,169.7,169.58,41.7]
[1746807321595,85.2386,169.74,169.6,13.93471768]
[1746807321906,85.2386,169.74,169.61,8.3209824]
[1746807322202,85.2386,169.74,169.62,6.3111824]
[1746807322403,85.2386,169.74,169.63,6.3111824]
[1746807322604,85.2386,169.74,169.64,6.3111824]
[1746807322907,5.8927,169.71,169.67,5.8938]
[1746807323105,85.2386,169.74,169.67,5.8938]
[1746807323308,85.2386,169.74,169.62,6.30870733]
[1746807323502,5.8924,169.72,169.67,5.8938]
[1746807323903,85.2386,169.74,169.62,6.31043071]
[1746807324098,1.8386,169.74,169.63,6.31043071]
[1746807324306,85.2986,169.74,169.64,6.31043071]
[1746807324505,85.2986,169.74,169.65,6.31043071]
[1746807324705,2.0148,169.75,169.66,6.31043071]
[1746807324911,83.42,169.78,169.67,6.31043071]
[1746807325105,83.42,169.78,169.68,6.31043071]
[1746807325307,83.42,169.78,169.64,97.35471768]
[1746807325507,83.42,169.78,169.65,6.2978783]
[1746807325712,83.42,169.78,169.66,6.2978783]
[1746807326007,83.42,169.78,169.75,5.891]
[1746807326213,41.72,169.78,169.68,20.23259598]
[1746807326409,1.9161,169.81,169.69,8.2046783]
[1746807326605,5.8898,169.8,169.76,5.8909]
[1746807326805,1.9161,169.81,169.76,5.8909]
[1746807327211,5.8897,169.8,169.76,5.8909]
[1746807327405,1.9161,169.81,169.69,1.9068]
[1746807327607,1.9161,169.81,169.7,6.29375436]
[1746807327805,1.9161,169.81,169.64,85.3268]
[1746807328006,1.9161,169.81,169.65,6.29616611]
[1746807328309,5.8912,169.76,169.66,6.29616611]
[1746807328510,5.8912,169.76,169.7,5.8928]
[1746807328711,41.72,169.77,169.64,85.3268]
[1746807328911,41.72,169.77,169.65,6.29741479]
[1746807329111,41.72,169.77,169.66,6.29741479]
[1746807329306,41.72,169.77,169.67,6.29741479]
[1746807329506,5.8911,169.76,169.72,5.892]
[1746807329911,41.72,169.77,169.65,6.28649201]
[1746807330105,41.72,169.77,169.66,6.28649201]
[1746807330302,41.72,169.77,169.64,85.3268]
[1746807330609,5.8918,169.74,169.65,6.28766296]
[1746807330810,5.8918,169.74,169.66,6.28744489]
[1746807331010,5.8918,169.74,169.64,43.6268]
[1746807331210,5.8918,169.74,169.65,6.28781207]
[1746807331409,5.8921,169.73,169.69,5.8931]
[1746807331809,83.26,169.75,169.67,5.8938]
[1746807332009,5.8926,169.72,169.67,5.8938]
[1746807332207,1.9159,169.74,169.67,5.8938]
[1746807332418,1.9159,169.74,169.64,43.6268]
[1746807332612,1.9159,169.74,169.64,1.9068]
[1746807333110,1.9159,169.74,169.62,3.849]
[1746807333309,3.8161,169.73,169.63,6.28410451]
[1746807333510,3.8161,169.73,169.58,43.5506]
[1746807333703,5.8944,169.67,169.62,5.8958]
[1746807333908,41.72,169.68,169.58,43.5506]
[1746807334110,41.72,169.68,169.56,1.9883]
[1746807334304,13.93471768,169.66,169.53,6.28217379]
[1746807334508,13.93471768,169.66,169.49,41.72]
[1746807334715,13.93471768,169.62,169.47,515.1166]
[1746807335013,84.962,169.61,169.48,6.28786613]
[1746807335314,84.962,169.61,169.47,5.8966]
[1746807335315,84.962,169.61,169.49,6.28786613]
[1746807335516,1.822,169.61,169.5,6.27610156]
[1746807335710,509.22,169.62,169.51,47.69610156]
[1746807335913,41.72,169.63,169.52,6.27610156]
[1746807336109,41.72,169.63,169.51,83.14]
[1746807336110,41.72,169.63,169.57,5.8973]
[1746807336314,41.72,169.63,169.51,83.14]